bitfinex-derivatives/quotes_BTCF0:USTF0_20210102
["timestamp","ask_amount","ask_price","bid_price","bid_amount"]
[1609624183372,0.17438,31677.0,31676.0,1.76122805]
[1609624184375,0.02,31677.0,31676.0,1.76122805]
[1609624185278,0.02,31677.0,31676.0,1.18082805]
[1609624185877,0.02,31677.0,31676.0,5.76322805]
[1609624187177,0.02,31677.0,31676.0,3.76322805]
[1609624187376,0.02,31677.0,31676.0,0.18082805]
[1609624188277,0.02,31677.0,31676.0,0.86692805]
[1609624188477,0.02,31677.0,31676.0,1.86692805]
[1609624189081,0.02,31677.0,31676.0,2.86692805]
[1609624189680,0.02,31677.0,31676.0,2.90580607]
[1609624189880,0.02,31677.0,31676.0,1.90580607]
[1609624190481,0.02,31677.0,31676.0,1.86692805]
[1609624191082,0.02,31677.0,31676.0,0.18082805]
[1609624193384,0.02,31677.0,31676.0,0.21970796]
[1609624195486,0.02,31677.0,31676.0,5.32410796]
[1609624197086,0.02,31677.0,31676.0,6.32410796]
[1609624199088,0.02,31677.0,31676.0,5.32410796]
[1609624199991,0.02,31677.0,31676.0,4.32410796]
[1609624204299,0.02,31677.0,31676.0,5.32410796]
[1609624204500,0.02,31677.0,31676.0,5.40184137]
[1609624206204,0.01,31685.0,31676.0,5.40184137]
[1609624206804,0.01,31685.0,31678.0,1.0]
[1609624207005,0.01,31685.0,31681.0,1.0]
[1609624207204,0.01,31685.0,31684.0,2.0]
[1609624207405,0.01,31685.0,31684.0,2.16039]
[1609624207605,0.01,31685.0,31684.0,2.27735448]
[1609624207805,0.02,31695.0,31684.0,2.45778606]
[1609624208006,0.02,31695.0,31684.0,7.07798606]
[1609624208407,0.02,31695.0,31685.0,0.11694206]
[1609624208607,0.02,31695.0,31686.0,1.0]
[1609624209109,0.02,31695.0,31684.0,5.96102158]
[1609624209110,0.02,31695.0,31694.0,1.0]
[1609624209707,0.02,31695.0,31694.0,1.17795309]
[1609624209907,0.02,31695.0,31694.0,1.35838467]
[1609624211110,0.02,31695.0,31694.0,0.35838467]
[1609624211311,0.02,31695.0,31694.0,1.35838467]
[1609624212710,0.02,31695.0,31694.0,2.35838467]
[1609624213814,0.02,31695.0,31694.0,1.35838467]
[1609624215111,0.02,31695.0,31694.0,0.35838467]
[1609624215311,0.02,31695.0,31694.0,1.35838467]
[1609624216916,0.02,31695.0,31694.0,0.35838467]
[1609624217715,0.02,31695.0,31694.0,1.35838467]
[1609624217916,0.17279,31714.0,31694.0,1.35838467]
[1609624218115,0.12985,31721.0,31694.0,1.35838467]
[1609624218315,0.12985,31721.0,31695.0,0.03922345]
[1609624218516,0.01924236,31730.0,31695.0,0.03922345]
[1609624218717,0.01924236,31730.0,31696.0,1.0]
[1609624219121,0.19633917,31735.0,31697.0,0.03922178]
[1609624219319,0.01923917,31735.0,31697.0,0.03922178]
[1609624219919,0.01923917,31735.0,31711.0,0.28928158]
[1609624220120,0.01921013,31741.0,31711.0,0.28928158]
[1609624220519,0.01921013,31741.0,31711.0,0.28967531]
[1609624221120,0.01921013,31741.0,31711.0,1.28967531]
[1609624221721,0.59001361,31744.0,31711.0,1.28967531]
[1609624223226,0.01921006,31747.0,31711.0,1.28967531]
[1609624224526,0.1996229,31749.0,31711.0,1.28967531]
[1609624225126,0.15972,31732.0,31711.0,0.28967531]
[1609624226529,0.2753,31731.0,31711.0,0.28967531]
[1609624230535,0.15972,31732.0,31711.0,1.32848209]
[1609624233139,0.15972,31732.0,31711.0,7.32848209]
[1609624233339,0.15972,31732.0,31711.0,7.40607479]
[1609624233639,0.15972,31732.0,31711.0,7.32848209]
[1609624233840,2.8802,31712.0,31711.0,7.32848209]
[1609624234240,2.8802,31712.0,31711.0,7.40607923]
[1609624235245,2.59062762,31712.0,31711.0,1.40607923]
[1609624236043,2.20456662,31712.0,31711.0,1.40607923]
[1609624236943,2.06586662,31712.0,31711.0,1.40607923]
[1609624238750,2.06586662,31712.0,31711.0,1.22564765]
[1609624239149,0.73896662,31712.0,31711.0,1.22564765]
[1609624239350,0.62196662,31712.0,31711.0,1.22564765]
[1609624239751,0.13834,31757.0,31736.0,4.6048]
[1609624239951,0.13834,31757.0,31756.0,0.18043158]
[1609624240551,0.13834,31757.0,31756.0,0.18082481]
[1609624243353,0.13834,31757.0,31756.0,0.21959067]
[1609624243555,0.293,31775.0,31759.0,4.6268]
[1609624243954,0.293,31775.0,31774.0,0.18043158]
[1609624246056,0.47343158,31775.0,31774.0,0.18082474]
[1609624247057,0.47343158,31775.0,31774.0,0.18043158]
[1609624248959,0.47343158,31775.0,31774.0,0.18082468]
[1609624250562,0.47343158,31775.0,31774.0,0.0003931]
[1609624250962,0.64449158,31775.0,31760.0,0.0003931]
[1609624251163,0.46406,31775.0,31760.0,0.0003931]
[1609624251563,0.46406,31775.0,31754.0,4.0622]
[1609624251763,0.46406,31775.0,31761.0,0.0003931]
[1609624251965,0.46406,31775.0,31774.0,0.18043158]
[1609624252363,0.46406,31775.0,31774.0,0.18082465]
[1609624253165,1.46406,31775.0,31774.0,0.18082465]
[1609624255166,0.46406,31775.0,31774.0,0.18082465]
[1609624258072,0.64449158,31775.0,31774.0,0.18082465]
[1609624259574,0.64449158,31775.0,31774.0,0.00039307]
[1609624259976,0.64449158,31775.0,31771.0,0.18043158]
[1609624260374,0.64449158,31775.0,31774.0,0.00039311]
[1609624260573,0.64449158,31775.0,31772.0,0.00039311]
[1609624260774,0.64449158,31775.0,31774.0,0.00039311]
[1609624260972,0.64449158,31775.0,31773.0,0.00039311]
[1609624261373,0.64449158,31775.0,31771.0,0.18043158]
[1609624261374,0.64449158,31775.0,31772.0,0.00039311]
[1609624261573,0.64449158,31775.0,31774.0,0.00039311]
[1609624261774,0.64449158,31775.0,31773.0,0.00039311]
[1609624262173,0.64449158,31775.0,31772.0,0.00039311]
[1609624262373,0.64449158,31775.0,31774.0,0.00039311]
[1609624262573,0.64449158,31775.0,31773.0,0.00039309]
[1609624262873,0.64449158,31775.0,31772.0,0.00039307]
[1609624263273,0.64449158,31775.0,31771.0,0.18043158]
[1609624263274,0.64449158,31775.0,31774.0,0.00039307]
[1609624263473,0.64449158,31775.0,31773.0,0.00039307]
[1609624263674,0.6448792,31775.0,31774.0,0.00039309]
[1609624264074,0.64449158,31775.0,31774.0,0.00039309]
[1609624264273,1.19607922,31775.0,31772.0,0.00039309]
[1609624264474,1.19607922,31775.0,31774.0,0.00039312]
[1609624264675,0.00038768,31774.0,31773.0,0.00039314]
[1609624265074,0.00038768,31774.0,31758.0,0.0391588]
[1609624265274,1.00038768,31774.0,31773.0,0.00039316]
[1609624265473,1.00038768,31774.0,31759.0,0.00039475]
[1609624265674,0.00039314,31772.0,31759.0,0.00039475]
[1609624265873,0.00039314,31772.0,31757.0,4.4813]
[1609624266075,0.0003877,31771.0,31760.0,0.00039475]
[1609624266273,0.0003877,31771.0,31758.0,0.00039475]
[1609624266574,0.0003877,31771.0,31761.0,0.00039475]
[1609624266774,0.0003877,31771.0,31759.0,0.00039473]
[1609624267075,0.01004017,31771.0,31758.0,0.00039473]
[1609624267279,1.0,31762.0,31758.0,0.00039473]
[1609624267475,1.0,31762.0,31760.0,0.00039473]
[1609624267677,1.0,31762.0,31759.0,0.00039473]
[1609624267873,1.0,31762.0,31752.0,0.18043158]
[1609624267874,1.0,31762.0,31761.0,0.00039478]
[1609624268074,1.18043158,31762.0,31761.0,0.00039478]
[1609624268275,1.18043158,31762.0,31760.0,0.00039478]
[1609624268474,1.18081932,31762.0,31761.0,0.00039478]
[1609624268676,1.18043158,31762.0,31761.0,0.00039478]
[1609624268875,1.18081932,31762.0,31753.0,0.03916733]
[1609624269076,1.33889932,31762.0,31753.0,0.03916733]
[1609624269275,0.33889932,31762.0,31753.0,0.03916733]
[1609624270078,0.15846774,31762.0,31759.0,0.18043158]
[1609624270475,0.15846774,31762.0,31760.0,0.00039477]
[1609624270776,0.15846774,31762.0,31759.0,0.18043158]
[1609624270976,0.15846774,31762.0,31761.0,0.00039474]
[1609624271377,0.15885543,31762.0,31760.0,0.00039474]
[1609624271577,0.15885543,31762.0,31761.0,0.00039474]
[1609624271778,0.15846774,31762.0,31761.0,0.00039474]
[1609624272177,0.15846774,31762.0,31760.0,0.0003948]
[1609624272379,0.15846774,31762.0,31761.0,0.00039474]
[1609624272980,0.15846774,31762.0,31760.0,0.00039471]
[1609624273181,0.15846774,31762.0,31761.0,0.00039471]
[1609624273780,0.15846774,31762.0,31760.0,0.00039471]
[1609624273980,0.15846774,31762.0,31761.0,0.00039469]
[1609624274480,0.15846774,31762.0,31760.0,0.03915683]
[1609624274680,0.15846774,31762.0,31761.0,0.00039467]
[1609624274982,0.15846774,31762.0,31760.0,0.03915569]
[1609624275186,0.15846774,31762.0,31761.0,1.0]
[1609624275382,0.15846774,31762.0,31761.0,1.00039467]
[1609624275583,0.15846774,31762.0,31761.0,1.03915518]
[1609624276785,0.15846774,31762.0,31761.0,1.00039467]
[1609624277183,0.15846774,31762.0,31761.0,0.00039467]
[1609624277583,0.15846774,31762.0,31760.0,0.00039467]
[1609624278186,0.33889932,31762.0,31760.0,0.00039467]
[1609624278785,0.15846774,31762.0,31760.0,0.00039467]
[1609624280087,0.22526774,31764.0,31759.0,0.12043158]
[1609624280289,0.1537,31762.0,31759.0,0.12043158]
[1609624280488,1.0,31761.0,31759.0,0.12043158]
[1609624282392,0.1537,31762.0,31759.0,0.12043158]
[1609624282592,0.1537,31762.0,31760.0,0.03875716]
[1609624285294,1.0,31773.0,31760.0,0.03875716]
[1609624286094,1.0,31773.0,31772.0,0.18043158]
[1609624286594,1.0,31773.0,31772.0,4.70522622]
[1609624287896,1.0,31773.0,31772.0,0.18082622]
[1609624288297,0.17106,31775.0,31772.0,0.18082622]
[1609624288497,1.0,31773.0,31772.0,0.18082622]
[1609624288695,1.0,31773.0,31772.0,0.18043158]
[1609624289197,1.0,31773.0,31772.0,0.18082622]
[1609624290300,0.17106,31775.0,31772.0,0.18082622]
[1609624290804,0.02900613,31780.0,31773.0,0.00039462]
[1609624292103,0.02900613,31780.0,31779.0,0.18043158]
[1609624292303,1.02900613,31780.0,31779.0,0.18043158]
[1609624292605,1.02900613,31780.0,31779.0,0.18082618]
[1609624292905,1.02900613,31780.0,31779.0,0.18043158]
[1609624293707,1.01011988,31780.0,31779.0,0.18043158]
[1609624294107,1.19055146,31780.0,31779.0,0.18043158]
[1609624294509,1.19055146,31780.0,31760.0,4.3322]
[1609624294708,1.34586146,31780.0,31760.0,4.3322]
[1609624294910,3.90715724,31780.0,31760.0,4.3322]
[1609624295109,0.0003876,31779.0,31761.0,0.00039469]
[1609624295510,0.00978368,31768.0,31761.0,0.00039469]
[1609624295912,0.16976368,31768.0,31761.0,0.00039469]
[1609624296111,0.16976368,31768.0,31767.0,0.18043158]
[1609624296512,0.15998,31768.0,31761.0,0.00039469]
[1609624296711,0.16036762,31768.0,31767.0,0.00039472]
[1609624296911,0.00038762,31767.0,31762.0,0.00039472]
[1609624297112,0.16036766,31768.0,31756.0,3.76]
[1609624297314,0.00038766,31766.0,31756.0,3.76]
[1609624297513,0.00038766,31766.0,31763.0,0.00039474]
[1609624297713,0.00038766,31767.0,31757.0,0.00039474]
[1609624297914,0.00038766,31765.0,31764.0,0.00039476]
[1609624298114,0.18043158,31765.0,31764.0,0.18082634]
[1609624298314,0.18043158,31765.0,31764.0,0.18043158]
[1609624298516,1.18081924,31765.0,31764.0,0.18082634]
[1609624299016,1.18081924,31765.0,31764.0,0.00039476]
[1609624299516,1.18081924,31765.0,31757.0,0.00039476]
[1609624299719,1.18081924,31765.0,31743.0,1.0]
[1609624299918,1.18081924,31765.0,31744.0,4.5985]
[1609624300117,0.00038766,31764.0,31762.0,0.18043158]
[1609624300317,0.00038766,31764.0,31745.0,0.00039476]
[1609624300517,0.00038766,31764.0,31744.0,4.5985]
[1609624300818,0.00038766,31767.0,31745.0,0.00039476]
[1609624301021,0.00038768,31763.0,31745.0,0.00039476]
[1609624301318,0.00038768,31767.0,31745.0,0.00039476]
[1609624301720,0.00038765,31762.0,31745.0,0.00039476]
[1609624301921,0.00038765,31766.0,31745.0,0.00039476]
[1609624302121,1.31395255,31768.0,31745.0,0.00039476]
[1609624302320,1.0,31758.0,31745.0,0.00039476]
[1609624302721,1.0,31758.0,31744.0,3.936]
[1609624302922,1.1456,31758.0,31746.0,0.00039472]
[1609624303121,1.1456,31758.0,31745.0,0.00039469]
[1609624304123,1.1456,31758.0,31757.0,0.18043158]
[1609624304323,0.1456,31758.0,31757.0,0.18043158]
[1609624304523,0.1156,31758.0,31757.0,0.18082627]
[1609624306323,0.1056,31758.0,31757.0,0.18082627]
[1609624308024,0.16975947,31768.0,31757.0,0.18082627]
[1609624308226,0.16975947,31768.0,31767.0,0.18043158]
[1609624308827,0.16975947,31768.0,31767.0,0.18082619]
[1609624309728,0.1891269,31768.0,31767.0,0.18082619]
[1609624313030,0.15998,31768.0,31767.0,0.18082619]
[1609624313229,0.00977773,31769.0,31767.0,0.18082619]
[1609624313729,0.00977773,31769.0,31768.0,0.00039458]
[1609624313932,0.32603977,31771.0,31768.0,0.01039458]
[1609624314330,0.18043158,31770.0,31769.0,0.00039458]
[1609624314730,0.30701158,31770.0,31769.0,0.00039458]
[1609624315735,0.29701158,31770.0,31769.0,0.00039458]
[1609624316337,0.8722656,31770.0,31769.0,0.00039458]
[1609624316537,1.8722656,31770.0,31769.0,0.00039458]
[1609624318037,1.70183402,31770.0,31769.0,0.00039458]
[1609624318438,0.70183402,31770.0,31769.0,0.00039458]
[1609624318838,0.14593907,31770.0,31769.0,0.00039458]
[1609624319849,0.12658,31770.0,31769.0,0.00039458]
[1609624320040,0.2969,31771.0,31769.0,0.00039458]
[1609624320241,0.12675,31770.0,31769.0,0.00039458]
[1609624321643,0.12675,31770.0,31769.0,4.35619458]
[1609624322648,0.57508243,31776.0,31769.0,4.35619458]
[1609624322848,0.00977085,31775.0,31769.0,4.35619458]
[1609624323144,0.00977085,31775.0,31770.0,0.00039444]
[1609624324047,0.15531,31780.0,31770.0,0.00039444]
[1609624324248,0.00976625,31781.0,31770.0,0.00039444]
[1609624324448,0.00976625,31781.0,31779.0,0.18043158]
[1609624324748,0.00976625,31781.0,31780.0,0.00039436]
[1609624325551,0.00976625,31781.0,31780.0,0.58459436]
[1609624325751,0.18686125,31783.0,31780.0,0.58459436]
[1609624326149,0.18686125,31783.0,31781.0,0.00039912]
[1609624326352,0.00976125,31783.0,31781.0,0.00039912]
[1609624327352,0.00975944,31789.0,31781.0,0.00039912]
[1609624328351,0.00975944,31789.0,31788.0,6.20113158]
[1609624328562,0.9569989,31797.0,31788.0,6.20113158]
[1609624328563,0.0949,31795.0,31788.0,6.20113158]
[1609624328755,0.0949,31795.0,31788.0,6.20153061]
[1609624328954,0.0949,31795.0,31789.0,0.00039898]
[1609624329756,0.02903382,31798.0,31789.0,0.00039898]
[1609624330162,1.16315785,31811.0,31789.0,0.00039898]
[1609624330163,0.00973464,31805.0,31789.0,1.00039898]
[1609624330364,0.00973464,31805.0,31804.0,0.18043158]
[1609624330761,0.00973464,31805.0,31804.0,4.62993158]
[1609624330963,0.00973464,31805.0,31804.0,4.6303305]
[1609624332760,0.0192753,31814.0,31804.0,4.6303305]
[1609624333260,0.0192753,31814.0,31805.0,0.00039879]
[1609624333659,0.0953,31813.0,31805.0,0.00039879]
[1609624334161,0.0953,31813.0,31805.0,1.00039879]
[1609624334361,0.0953,31813.0,31812.0,1.18043158]
[1609624334561,0.16663,31819.0,31812.0,1.88843158]
[1609624334761,0.16663,31819.0,31812.0,1.1808303]
[1609624335163,0.16663,31819.0,31813.0,0.00039869]
[1609624336367,0.16663,31819.0,31817.0,0.18043158]
[1609624336965,0.16663,31819.0,31818.0,0.00039873]
[1609624337165,0.16663,31819.0,31817.0,0.18043158]
[1609624338766,0.16663,31819.0,31817.0,0.68713158]
[1609624338966,0.30882151,31833.0,31817.0,0.68713158]
[1609624340374,0.30882151,31833.0,31832.0,0.18043158]
[1609624340770,0.2897,31833.0,31832.0,0.18043158]
[1609624340972,1.2897,31833.0,31822.0,4.6236]
[1609624341170,1.40669,31833.0,31822.0,4.6236]
[1609624342172,0.40669,31833.0,31822.0,4.6236]
[1609624342373,0.18043158,31827.0,31824.0,0.18043158]
[1609624343378,1.18043158,31827.0,31822.0,4.6236]
[1609624343576,1.18043158,31827.0,31822.0,2.6236]
[1609624343774,1.18043158,31827.0,31803.0,1.0]
[1609624343975,4.181,31824.0,31803.0,1.0]
[1609624344175,1.0,31823.0,31803.0,1.0]
[1609624344377,5.0,31810.0,31806.0,0.18043158]
[1609624344575,1.0,31809.0,31791.0,4.5524]
[1609624344776,1.0,31809.0,31783.0,0.0027]
[1609624345375,1.469,31809.0,31783.0,0.0027]
[1609624346375,0.469,31809.0,31783.0,0.6609]
[1609624346576,0.469,31809.0,31783.0,0.0027]
[1609624346976,0.469,31809.0,31788.0,4.8923]
[1609624348377,0.469,31809.0,31803.0,0.18043158]
[1609624349577,0.469,31809.0,31804.0,0.00039886]
[1609624350479,1.18043158,31805.0,31804.0,0.00039886]
[1609624352382,0.18043158,31805.0,31804.0,0.00039886]
[1609624353082,0.469,31809.0,31804.0,0.00039886]
[1609624353983,0.16002,31810.0,31804.0,0.00039886]
[1609624354183,0.1771,31823.0,31804.0,0.00039886]
[1609624354384,0.18043158,31813.0,31812.0,0.18043158]
[1609624354783,0.35088158,31813.0,31812.0,0.18083039]
[1609624355184,0.35088158,31813.0,31812.0,0.00039881]
[1609624355386,1.35088158,31813.0,31812.0,0.00039881]
[1609624355585,1.35088158,31813.0,31794.0,0.00039881]
[1609624356487,1.0,31799.0,31794.0,0.00039881]
[1609624356687,1.0,31799.0,31794.0,0.03909448]
[1609624358389,0.16489,31802.0,31798.0,0.18043158]
[1609624358791,0.16489,31802.0,31799.0,0.00039881]
[1609624359793,0.16489,31802.0,31799.0,0.03909499]
[1609624360693,0.16489,31802.0,31801.0,5.0861]
[1609624361094,1.0,31809.0,31801.0,5.0861]
[1609624361294,1.0,31809.0,31801.0,5.12518791]
[1609624361494,1.0,31809.0,31802.0,0.03908715]
[1609624362296,0.0001,31809.0,31802.0,0.03908715]
[1609624362495,0.17045,31813.0,31808.0,1.18043158]
[1609624362694,0.15305,31824.0,31809.0,0.7446]
[1609624363094,1.0,31828.0,31810.0,0.03907621]
[1609624363894,1.0,31828.0,31811.0,4.8143]
[1609624364095,1.0,31828.0,31811.0,4.8533744]
[1609624364297,1.0,31828.0,31812.0,0.03907433]
[1609624364497,1.0,31828.0,31827.0,0.18043158]
[1609624364697,0.18043158,31832.0,31827.0,0.18043158]
[1609624364897,0.18043158,31832.0,31827.0,0.18083019]
[1609624365096,0.18043158,31832.0,31828.0,0.00039861]
[1609624366499,0.18043158,31832.0,31831.0,0.18043158]
[1609624367100,1.18043158,31832.0,31831.0,0.18083016]
[1609624367299,1.18043158,31832.0,31831.0,0.00039858]
[1609624367699,5.31863158,31832.0,31831.0,0.00039858]
[1609624367899,5.41223158,31832.0,31812.0,0.03907764]
[1609624368099,5.41223158,31832.0,31831.0,0.00039864]
[1609624368300,5.41223158,31832.0,31808.0,4.7304]
[1609624368301,5.41223158,31832.0,31813.0,0.00039864]
[1609624368499,5.2318,31832.0,31814.0,0.18043158]
[1609624368799,5.2318,31832.0,31815.0,0.00039866]
[1609624368800,1.0,31822.0,31815.0,0.00039866]
[1609624369201,1.0,31822.0,31809.0,0.00039868]
[1609624369401,1.0,31822.0,31816.0,0.0003987]
[1609624369601,1.0,31822.0,31810.0,0.0003987]
[1609624370003,1.0,31822.0,31809.0,0.0003987]
[1609624370201,1.0,31822.0,31811.0,0.0003987]
[1609624370401,1.0,31822.0,31810.0,0.0003987]
[1609624370602,0.18043158,31811.0,31810.0,0.0003987]
[1609624370801,0.33148158,31811.0,31809.0,0.0003987]
[1609624371002,0.33148158,31811.0,31810.0,0.0003987]
[1609624371502,0.33148158,31811.0,31807.0,0.18043158]
[1609624371503,0.33148158,31811.0,31808.0,0.0003987]
[1609624371903,0.33148158,31811.0,31810.0,0.0003987]
[1609624372102,0.33148158,31811.0,31809.0,0.0003987]
[1609624372303,0.33148158,31811.0,31810.0,0.0003987]
[1609624372802,0.33148158,31811.0,31808.0,0.0003987]
[1609624373203,0.33148158,31811.0,31810.0,0.00039872]
[1609624373403,0.33148158,31811.0,31809.0,0.00039872]
[1609624373603,0.33148158,31811.0,31810.0,0.00039872]
[1609624374103,0.33148158,31811.0,31808.0,0.00039872]
[1609624375606,0.15105,31811.0,31808.0,0.00039872]
[1609624375808,0.13218,31811.0,31808.0,0.00039872]
[1609624378609,1.0,31809.0,31808.0,0.00039872]
[1609624382413,2.0,31809.0,31808.0,0.00039872]
[1609624382915,0.01992265,31807.0,31791.0,4.8958]
[1609624383113,0.01992265,31807.0,31791.0,1.0]
[1609624383313,5.9824,31801.0,31791.0,1.0]
[1609624383713,5.9824,31801.0,31800.0,0.01049873]
[1609624384113,1.0,31801.0,31800.0,0.01049873]
[1609624384717,1.27443158,31801.0,31800.0,0.01049873]
[1609624386517,1.18043158,31801.0,31800.0,0.01049873]
[1609624387117,1.0,31801.0,31800.0,0.01049873]
[1609624387320,0.02902752,31802.0,31800.0,0.01049873]
[1609624387817,0.02902752,31802.0,31801.0,0.00040095]
[1609624388417,0.02902752,31802.0,31801.0,0.00040094]
[1609624388818,1.2094591,31802.0,31801.0,0.18083252]
[1609624389518,0.2094591,31802.0,31801.0,0.18083252]
[1609624389718,1.2094591,31802.0,31801.0,0.18083252]
[1609624389923,1.2094591,31802.0,31801.0,0.00040094]
[1609624390119,0.2094591,31802.0,31801.0,0.00040094]
[1609624390820,1.3026591,31802.0,31801.0,0.18083252]
[1609624391521,1.3026591,31802.0,31801.0,0.00040094]
[1609624391721,1.2094591,31802.0,31801.0,0.00040094]
[1609624392223,1.18043158,31802.0,31801.0,0.00040094]
[1609624392626,2.18043158,31802.0,31801.0,0.00040094]
[1609624393025,1.18043158,31802.0,31801.0,0.00040094]
[1609624394626,0.18043158,31802.0,31801.0,0.00040094]
[1609624394827,0.18043158,31802.0,31801.0,0.18083252]
[1609624395931,0.18043158,31802.0,31801.0,0.00040094]
[1609624396830,0.18043158,31802.0,31801.0,0.18083252]
[1609624402337,0.13744,31803.0,31801.0,0.18083252]
[1609624402638,0.13744,31803.0,31802.0,0.00040092]
[1609624403041,0.02792265,31807.0,31802.0,0.00040092]
[1609624404444,0.02792265,31807.0,31803.0,4.0159]
[1609624404645,0.02792265,31807.0,31805.0,1.0]
[1609624405044,0.02792265,31807.0,31806.0,0.18083247]
[1609624405745,0.01992265,31807.0,31806.0,0.18083247]
[1609624409751,0.01992265,31807.0,31806.0,0.00040089]
[1609624410252,0.01992265,31807.0,31803.0,0.13445]
[1609624410652,0.01992265,31807.0,31804.0,0.00040086]
[1609624411052,0.01992265,31807.0,31806.0,0.18043158]
[1609624411354,0.01992265,31807.0,31806.0,0.18083241]
[1609624412956,0.18043158,31813.0,31806.0,0.18083241]
[1609624413456,0.18043158,31813.0,31807.0,0.00040083]
[1609624415661,1.18043158,31813.0,31807.0,0.00040083]
[1609624417363,1.18043158,31813.0,31807.0,0.03908208]
[1609624417762,5.1245,31808.0,31807.0,0.03908208]
[1609624417962,0.12666996,31806.0,31800.0,0.0101]
[1609624418161,1.0,31805.0,31800.0,0.0101]
[1609624418462,0.5894,31802.0,31801.0,0.00040091]
[1609624418662,1.5894,31802.0,31801.0,0.00040091]
[1609624419063,1.00038692,31802.0,31780.0,0.03909273]
[1609624419264,1.00038692,31802.0,31801.0,0.00040095]
[1609624419463,4.62358692,31802.0,31801.0,0.00040095]
[1609624419663,0.00038692,31801.0,31791.0,0.18043158]
[1609624419866,1.00038692,31802.0,31801.0,0.00040095]
[1609624420065,0.00038692,31800.0,31792.0,0.00040095]
[1609624420265,1.0,31801.0,31791.0,0.18043158]
[1609624420665,0.00038694,31800.0,31792.0,0.00040097]
[1609624421065,1.00038694,31800.0,31792.0,0.00040097]
[1609624421265,1.18043158,31793.0,31792.0,0.00040097]
[1609624421466,1.28633158,31793.0,31782.0,0.18043158]
[1609624421666,1.28671852,31793.0,31792.0,0.00040097]
[1609624421866,1.28633158,31793.0,31783.0,0.03909523]
[1609624422469,1.28633158,31793.0,31783.0,0.00040097]
[1609624422669,1.28633158,31793.0,31784.0,0.00040097]
[1609624423069,0.28633158,31793.0,31784.0,0.00040097]
[1609624423269,0.28633158,31793.0,31792.0,0.18043158]
[1609624423769,1.28633158,31793.0,31792.0,0.18083255]
[1609624428076,1.28633158,31793.0,31792.0,0.18043158]
[1609624428577,2.28633158,31793.0,31792.0,0.18043158]
[1609624429479,2.28633158,31793.0,31776.0,1.0]
[1609624429679,3.9207,31789.0,31776.0,1.0]
[1609624429881,1.0,31788.0,31777.0,0.00040099]
[1609624430679,1.0,31785.0,31777.0,0.00040099]
[1609624431082,1.0,31785.0,31771.0,0.00040099]
[1609624431282,1.0,31785.0,31784.0,0.18043158]
[1609624431681,1.0,31785.0,31784.0,0.18083259]
[1609624432583,0.13999,31786.0,31784.0,0.18083259]
[1609624432883,1.13999,31786.0,31784.0,0.18083259]
[1609624433084,1.13999,31786.0,31785.0,0.00040101]
[1609624433283,1.32042158,31786.0,31785.0,0.00040101]
[1609624433884,0.32042158,31786.0,31785.0,0.00040101]
[1609624434086,1.32042158,31786.0,31785.0,0.00040101]
[1609624437092,0.32042158,31786.0,31785.0,0.00040101]
[1609624437293,1.0,31789.0,31785.0,0.00040101]
[1609624438603,0.1059,31793.0,31785.0,0.00040101]
[1609624438798,0.00975256,31799.0,31785.0,0.00040101]
[1609624438997,1.15557,31792.0,31785.0,0.00040101]
[1609624439401,1.15557,31792.0,31789.0,0.18043158]
[1609624439797,1.15557,31792.0,31790.0,0.00040098]
[1609624441298,0.18043158,31791.0,31790.0,0.00040098]
[1609624444700,0.18043158,31791.0,31790.0,1.00040098]
[1609624446702,0.18043158,31791.0,31790.0,0.00040098]
[1609624448506,1.18043158,31791.0,31790.0,0.00040098]
[1609624448705,0.02,31790.0,31789.0,0.18043158]
[1609624449205,0.02,31790.0,31789.0,0.18083294]
[1609624449406,0.02,31790.0,31789.0,0.17293294]
[1609624455110,0.02,31790.0,31789.0,0.21162515]
[1609624455310,0.02,31790.0,31789.0,0.17293294]
[1609624455611,0.02,31790.0,31789.0,0.21162528]
[1609624456713,0.02,31790.0,31789.0,0.17293294]
[1609624456913,0.02,31790.0,31789.0,0.21162526]
[1609624464323,0.02,31790.0,31789.0,0.19242526]
[1609624466628,4.5381,31790.0,31789.0,0.19242526]
[1609624466828,5.5381,31790.0,31789.0,0.19242526]
[1609624467731,1.02,31790.0,31789.0,0.19242526]
[1609624475442,1.02,31790.0,31778.0,1.0]
[1609624475642,4.7514,31779.0,31778.0,1.0]
[1609624475842,5.90867,31779.0,31778.0,1.0]
[1609624476242,5.90867,31779.0,31778.0,1.00040141]
[1609624476445,5.90905701,31779.0,31778.0,1.00040141]
[1609624476645,6.90905701,31779.0,31778.0,0.00040141]
[1609624476844,2.15765701,31779.0,31778.0,0.00040141]
[1609624477052,2.15765701,31779.0,31758.0,1.0]
[1609624477053,1.73303282,31779.0,31760.0,0.03910905]
[1609624477245,1.73303282,31779.0,31778.0,0.00040147]
[1609624477447,1.91307739,31779.0,31778.0,5.17623158]
[1609624477846,1.73264581,31779.0,31778.0,0.18083301]
[1609624478449,1.15727,31779.0,31778.0,0.18083301]
[1609624478647,0.15727,31779.0,31778.0,0.21953081]
[1609624480048,0.20960685,31783.0,31778.0,0.21953081]
[1609624480348,0.20960685,31783.0,31779.0,0.03909372]
[1609624480749,0.20960685,31783.0,31779.0,1.03909372]
[1609624480948,0.20960685,31783.0,31780.0,0.03909341]
[1609624481347,0.20960685,31783.0,31782.0,0.18043158]
[1609624481550,1.20960685,31783.0,31782.0,0.18043158]
[1609624481750,1.18043158,31783.0,31782.0,0.1808329]
[1609624484152,1.18043158,31783.0,31777.0,1.0]
[1609624484351,4.6296,31778.0,31777.0,1.0]
[1609624484552,5.6296,31778.0,31777.0,1.0]
[1609624484752,2.0,31778.0,31766.0,0.14694]
[1609624484953,2.0,31778.0,31777.0,0.00040138]
[1609624485154,2.0,31778.0,31772.0,0.17141]
[1609624485354,2.0,31778.0,31777.0,0.00040141]
[1609624485553,5.6992,31778.0,31777.0,0.00040141]
[1609624485754,5.6992,31778.0,31773.0,0.00040143]
[1609624485954,5.6992,31778.0,31777.0,0.00040143]
[1609624486154,5.6992,31778.0,31774.0,0.00040143]
[1609624486554,5.6992,31778.0,31777.0,0.00040145]
[1609624486756,2.0,31778.0,31775.0,0.00040145]
[1609624486956,5.6094,31778.0,31777.0,0.00040147]
[1609624487256,5.6094,31778.0,31776.0,0.00040147]
[1609624487456,0.18043158,31777.0,31772.0,0.17141]
[1609624487656,1.0,31776.0,31772.0,0.17141]
[1609624487957,1.0,31776.0,31773.0,0.00040149]
[1609624488656,1.0,31774.0,31773.0,0.00040149]